lending/lending_fUSD_20250418
["ID","MTS","AMOUNT","RATE_DAILY","PERIOD"]
[358331149,1744938653157,-500.0,0.00147844,2]
[358331150,1744938653167,-574.24,0.00147844,120]
[358331151,1744938653175,-500.0,0.00147844,30]
[358331152,1744938653184,-500.0,0.00147844,120]
[358331153,1744938653193,-347.1236452,0.00147844,120]
[358331154,1744938653202,-631.4386588,0.00147844,120]
[358331155,1744938653213,-500.0,0.00147844,120]
[358331156,1744938653224,-501.76762563,0.00147844,120]
[358331157,1744938653233,-500.0,0.00147844,120]
[358331158,1744938653243,-559.8761532,0.00147844,120]
[358331159,1744938653253,-500.0,0.00147844,120]
[358331160,1744938653263,-500.0,0.00147844,120]
[358331161,1744938653273,-504.67035801,0.00147844,120]
[358331162,1744938653284,-500.0,0.00147844,120]
[358331163,1744938653294,-326.65960963,0.00147844,120]
[358331164,1744938653304,-325.74614364,0.00147844,120]
[358331165,1744938653314,-516.85,0.00147844,120]
[358331166,1744938653323,-500.0,0.00147844,120]
[358331167,1744938653332,-269.61248167,0.00147844,120]
[358331168,1744938653342,-500.0,0.00147844,120]
[358331169,1744938653352,-500.0,0.00147844,120]
[358331170,1744938653362,-500.0,0.00147844,120]
[358331171,1744938653372,-198.4,0.00147844,120]
[358331172,1744938653381,-500.0,0.00147844,120]
[358331173,1744938653391,-493.78465956,0.00147844,2]
[358331174,1744938653401,-551.52,0.00147844,120]
[358331175,1744938653413,-179.81639875,0.00147844,120]
[358331176,1744938653423,-500.0,0.00147844,2]
[358331177,1744938653432,-557.65981097,0.00147844,120]
[358331178,1744938653441,-500.0,0.00147844,2]
[358331179,1744938653451,-400.0,0.001479,53]
[358331180,1744938653463,-5704.46848971,0.00147934,29]
[358331181,1744938653472,-500.0,0.00147944,120]
[358331182,1744938653481,-500.0,0.00147944,120]
[358331183,1744938653490,-500.0,0.00147944,120]
[358331184,1744938653500,-500.0,0.00147944,120]
[358331185,1744938653510,-500.0,0.00147944,120]
[358331186,1744938653519,-500.0,0.00147944,120]
[358331187,1744938653528,-250.0,0.00147944,120]
[358331188,1744938653537,-500.0,0.00147944,120]
[358331189,1744938653546,-500.0,0.00147944,120]
[358331190,1744938653556,-500.0,0.00147944,120]
[358331191,1744938653565,-462.41432684,0.00147944,120]
[358331192,1744938653574,-500.0,0.00147944,120]
[358331193,1744938653583,-500.0,0.00147944,120]
[358331194,1744938653593,-213.16084837,0.00147944,120]
[358331195,1744938653602,-500.0,0.00147944,120]
[358331196,1744938653611,-425.0124781,0.00147944,120]
[358331197,1744938653621,-523.77,0.00147944,120]
[358331198,1744938653630,-500.0,0.00147944,120]
[358331199,1744938653640,-229.39750037,0.00147944,120]
[358331200,1744938653650,-522.85133393,0.00147944,120]
[358331201,1744938653659,-500.0,0.00147944,120]
[358331202,1744938653668,-500.0,0.00147944,120]
[358331203,1744938653677,-500.0,0.00147944,120]
[358331204,1744938653687,-432.08349903,0.00147944,120]
[358331205,1744938653696,-500.0,0.00147944,120]
[358331206,1744938653705,-512.4350579,0.00147944,120]
[358331207,1744938653716,-500.0,0.00147944,120]
[358331208,1744938653726,-334.87588938,0.00147944,120]
[358331209,1744938653736,-225.74336293,0.00147944,120]
[358331210,1744938653745,-500.0,0.00147944,120]
[358331211,1744938653755,-500.0,0.00147944,120]
[358331212,1744938653764,-500.0,0.00147944,120]
[358331213,1744938653774,-1266.75,0.00147944,120]
[358331214,1744938653783,-500.0,0.00147944,120]
[358331215,1744938653793,-500.0,0.00147944,120]
[358331216,1744938653802,-500.0,0.00147944,120]
[358331217,1744938653811,-623.99034503,0.00147944,120]
[358331218,1744938653820,-210.64998799,0.00147944,120]
[358331219,1744938653830,-500.0,0.00147944,120]
[358331220,1744938653840,-500.0,0.00147944,120]
[358331221,1744938653849,-500.0,0.00147944,120]
[358331222,1744938653858,-500.0,0.00147944,120]
[358331223,1744938653868,-500.0,0.00147944,120]
[358331224,1744938653878,-500.0,0.00147944,120]
[358331225,1744938653887,-205.51455129,0.00147944,120]
[358331226,1744938653898,-500.0,0.00147944,120]
[358331227,1744938653907,-500.0,0.00147944,120]
[358331228,1744938653917,-5704.46848971,0.00147963,29]
[358331229,1744938653927,-150.0,0.00147973,30]
[358331230,1744938653936,-209.22,0.00148066,120]
[358331231,1744938653946,-170.28,0.00148252,120]
[358331232,1744938653956,-5704.46848971,0.00148446,29]
[358331233,1744938653967,-1000.0,0.00148452,14]
[358331234,1744938653977,-1000.0,0.00148452,120]
[358331235,1744938653987,-1000.0,0.00148452,14]
[358331236,1744938653997,-1000.0,0.00148452,120]
[358331237,1744938654007,-500.0,0.00148452,120]
[358331238,1744938654016,-1000.0,0.00148452,120]
[358331239,1744938654026,-1005.07480843,0.00148452,120]
[358331240,1744938654035,-6420.18042534,0.00148456,15]
[358331241,1744938654045,-250.0,0.00148521,30]
[358331242,1744938654054,-5704.46848971,0.00148535,29]
[358331243,1744938654063,-160.0,0.00148712,30]
[358331244,1744938654074,-1000.0,0.00148723,120]
[358331245,1744938654084,-800.0,0.00148791,120]
[358331246,1744938654094,-350.0,0.00149068,30]
[358331247,1744938654104,-5704.46848971,0.00149204,30]
[358331248,1744938654114,-800.0,0.00149554,120]
[358331249,1744938654124,-450.0,0.00149616,30]
[358331250,1744938654134,-500.000001,0.0015,120]
[358331251,1744938654143,-185.62450705,0.00150164,30]
[358331252,1744938654152,-22817.8739588,0.00150574,30]
[358331253,1744938654162,-268.42798199,0.00150584,2]
[358331254,1744938654171,-500.0,0.00150584,120]
[358331255,1744938654180,-500.0,0.00150584,120]
[358331256,1744938654189,-500.0,0.00150584,120]
[358331257,1744938654199,-500.0,0.00150584,120]
[358331258,1744938654209,-500.0,0.00150584,120]
[358331259,1744938654218,-500.0,0.00150584,120]
[358331260,1744938654227,-204.64,0.00150584,120]
[358331261,1744938654237,-500.0,0.00150584,120]
[358331262,1744938654247,-500.0,0.00150584,120]
[358331263,1744938654257,-270.52,0.00150584,120]
[358331264,1744938654266,-528.26274833,0.00150584,30]
[358331265,1744938654275,-500.0,0.00150584,120]
[358331266,1744938654284,-500.0,0.00150584,120]
[358331267,1744938654294,-372.65981925,0.00150584,120]
[358331268,1744938654303,-500.0,0.00150584,120]
[358331269,1744938654312,-500.0,0.00150584,120]
[358331270,1744938654322,-185.13628042,0.00150584,120]
[358331271,1744938654332,-500.0,0.00150584,120]
[358331272,1744938654341,-500.0,0.00150584,120]
[358331273,1744938654351,-500.0,0.00150584,120]
[358331274,1744938654360,-198.99,0.00150584,120]
[358331275,1744938654370,-500.0,0.00150584,120]
[358331276,1744938654379,-292.11276859,0.00150584,120]
[358331277,1744938654388,-500.0,0.00150584,120]
[358331278,1744938654398,-500.0,0.00150584,120]
[358331279,1744938654407,-172.10104914,0.00150584,120]
[358331280,1744938654416,-293.4943357,0.00150584,120]
[358331281,1744938654425,-500.0,0.00150584,120]
[358331282,1744938654434,-500.0,0.00150584,120]
[358331283,1744938654444,-500.0,0.00150584,120]
[358331284,1744938654453,-408.11271254,0.00150584,120]
[358331285,1744938654464,-180.539085,0.00150584,120]
[358331286,1744938654473,-500.0,0.00150584,2]
[358331287,1744938654482,-500.0,0.00150584,120]
[358331288,1744938654492,-1769.545818,0.00150584,120]
[358331289,1744938654501,-500.0,0.00150584,120]
[358331290,1744938654511,-500.0,0.00150584,120]
[358331291,1744938654521,-279.685361,0.00150584,120]
[358331292,1744938654531,-500.0,0.00150584,120]
[358331293,1744938654540,-500.0,0.00150584,118]
[358331294,1744938654550,-500.0,0.00150584,120]
[358331295,1744938654559,-500.0,0.00150584,120]
[358331296,1744938654568,-500.0,0.00150584,120]
[358331297,1744938654578,-500.0,0.00150584,120]
[358331298,1744938654587,-642.64777953,0.00150584,120]
[358331299,1744938654596,-4751.74,0.00150584,7]
[358331300,1744938654605,-500.0,0.00150584,120]
[358331301,1744938654615,-500.0,0.00150584,120]
[358331302,1744938654624,-882.66278116,0.00150584,35]
[358331303,1744938654634,-500.0,0.00150584,120]
[358331304,1744938654643,-500.0,0.00150584,120]
[358331305,1744938654654,-500.0,0.00150584,120]
[358331306,1744938654663,-500.0,0.00150584,120]
[358331307,1744938654672,-500.0,0.00150584,120]
[358331308,1744938654681,-500.0,0.00150584,120]
[358331309,1744938654690,-532.11,0.00150584,120]
[358331310,1744938654700,-500.0,0.00150584,120]
[358331311,1744938654710,-500.0,0.00150584,120]
[358331312,1744938654720,-500.0,0.00150584,120]
[358331313,1744938654729,-500.0,0.00150584,120]
[358331314,1744938654739,-500.0,0.00150584,120]
[358331315,1744938654749,-500.0,0.00150584,120]
[358331316,1744938654760,-500.0,0.00150584,120]
[358331317,1744938654769,-500.0,0.00150584,120]
[358331318,1744938654778,-500.0,0.00150584,120]
[358331319,1744938654787,-500.0,0.00150584,120]
[358331320,1744938654797,-500.0,0.00150584,120]
[358331321,1744938654806,-500.0,0.00150584,120]
[358331322,1744938654815,-478.86935553,0.00150584,120]
[358331323,1744938654825,-500.0,0.00150584,120]
[358331324,1744938654834,-500.0,0.00150584,120]
[358331325,1744938654844,-500.0,0.00150584,120]
[358331326,1744938654854,-500.0,0.00150584,120]
[358331327,1744938654864,-571.70166086,0.00150584,120]
[358331328,1744938654873,-500.0,0.00150584,120]
[358331329,1744938654883,-500.0,0.00150584,120]
[358331330,1744938654892,-345.79045543,0.00150584,120]
[358331331,1744938654902,-500.0,0.00150584,120]
[358331332,1744938654911,-500.0,0.00150584,120]
[358331333,1744938654921,-500.0,0.00150584,2]
[358331334,1744938654931,-500.0,0.00150584,30]
[358331335,1744938654941,-500.0,0.00150584,120]
[358331336,1744938654950,-500.0,0.00150584,120]
[358331337,1744938654961,-500.0,0.00150584,120]
[358331338,1744938654971,-500.0,0.00150584,120]
[358331339,1744938654981,-500.0,0.00150584,120]
[358331340,1744938655101,-500.0,0.00150584,120]
[358331341,1744938655113,-516.85,0.00150584,120]
[358331342,1744938655123,-500.0,0.00150584,120]
[358331343,1744938655133,-212.92084527,0.00150584,120]
[358331344,1744938655142,-500.0,0.00150584,120]
[358331345,1744938655154,-500.0,0.00150584,120]
[358331346,1744938655163,-198.4,0.00150584,120]
[358331347,1744938655173,-500.0,0.00150584,120]
[358331348,1744938655183,-551.52,0.00150584,120]
[358331349,1744938655192,-500.0,0.00150584,2]
[358331350,1744938655201,-5704.46848971,0.00150674,30]
[358331351,1744938655212,-500.0,0.00150684,120]
[358331352,1744938655223,-500.0,0.00150684,120]
[358331353,1744938655232,-500.0,0.00150684,120]
[358331354,1744938655242,-507.08338802,0.00150684,120]
[358331355,1744938655252,-355.3,0.00150684,120]
[358331356,1744938655263,-500.0,0.00150684,120]
[358331357,1744938655272,-398.7182927,0.00150684,120]
[358331358,1744938655282,-500.0,0.00150684,120]
[358331359,1744938655291,-519.36,0.00150684,120]
[358331360,1744938655301,-500.0,0.00150684,120]
[358331361,1744938655310,-500.0,0.00150684,120]
[358331362,1744938655320,-500.0,0.00150684,120]
[358331363,1744938655329,-500.0,0.00150684,120]
[358331364,1744938655339,-523.77,0.00150684,120]
[358331365,1744938655348,-500.0,0.00150684,120]
[358331366,1744938655358,-278.73420809,0.00150684,120]
[358331367,1744938655367,-500.0,0.00150684,120]
[358331368,1744938655376,-500.0,0.00150684,120]
[358331369,1744938655385,-287.60532865,0.00150684,120]
[358331370,1744938655395,-309.26130578,0.00150684,120]
[358331371,1744938655404,-351.38852329,0.00150684,120]
[358331372,1744938655413,-500.0,0.00150684,120]
[358331373,1744938655423,-192.54971745,0.00150684,120]
[358331374,1744938655432,-1266.75,0.00150684,120]
[358331375,1744938655442,-500.0,0.00150684,120]
[358331376,1744938655452,-500.0,0.00150684,120]
[358331377,1744938655462,-500.0,0.00150684,120]
[358331378,1744938655471,-500.0,0.00150684,120]
[358331379,1744938655480,-500.0,0.00150684,120]
[358331380,1744938655489,-500.0,0.00150684,120]
[358331381,1744938655499,-522.44661882,0.00150684,120]
[358331382,1744938655508,-500.0,0.00150684,120]
[358331383,1744938655517,-500.0,0.00150684,120]
[358331384,1744938655527,-500.0,0.00150684,120]
[358331385,1744938655536,-500.0,0.00150684,120]
[358331386,1744938655545,-2731.56,0.00150758,30]
[358331387,1744938655554,-151.0,0.00151193,102]
[358331388,1744938655563,-5704.46848971,0.00151351,30]
[358331389,1744938655572,-500.0,0.00151361,120]
[358331390,1744938655581,-150.0,0.00151378,120]
[358331391,1744938655591,-184.65,0.00151444,120]
[358331392,1744938655600,-170.0,0.00151452,30]
[358331393,1744938655610,-587.4,0.00151698,120]
[358331394,1744938655619,-180.93393755,0.00152822,20]
[358331395,1744938655629,-17113.4054691,0.00153314,30]
[358331396,1744938655638,-500.0,0.00153324,120]
[358331397,1744938655647,-266.17304149,0.00153324,120]
[358331398,1744938655656,-500.0,0.00153324,120]
[358331399,1744938655666,-500.0,0.00153324,120]
[358331400,1744938655675,-320.30467313,0.00153324,120]
[358331401,1744938655685,-500.0,0.00153324,120]
[358331402,1744938655694,-500.0,0.00153324,120]
[358331403,1744938655703,-500.0,0.00153324,120]
[358331404,1744938655712,-500.0,0.00153324,120]
[358331405,1744938655721,-337.30355983,0.00153324,120]
[358331406,1744938655730,-392.72348064,0.00153324,120]
[358331407,1744938655739,-500.0,0.00153324,120]
[358331408,1744938655749,-500.0,0.00153324,120]
[358331409,1744938655759,-562.05178342,0.00153324,120]
[358331410,1744938655768,-500.0,0.00153324,120]
[358331411,1744938655777,-500.0,0.00153324,120]
[358331412,1744938655786,-500.0,0.00153324,120]
[358331413,1744938655795,-500.0,0.00153324,120]
[358331414,1744938655804,-500.0,0.00153324,120]
[358331415,1744938655813,-500.0,0.00153324,120]
[358331416,1744938655823,-180.539085,0.00153324,120]
[358331417,1744938655832,-500.0,0.00153324,2]
[358331418,1744938655842,-500.0,0.00153324,120]
[358331419,1744938655851,-1769.545818,0.00153324,120]
[358331420,1744938655861,-500.0,0.00153324,120]
[358331421,1744938655871,-500.000002,0.00153324,120]
[358331422,1744938655880,-279.685361,0.00153324,120]
[358331423,1744938655890,-500.0,0.00153324,120]
[358331424,1744938655899,-500.0,0.00153324,118]
[358331425,1744938655908,-500.0,0.00153324,120]
[358331426,1744938655918,-500.0,0.00153324,120]
[358331427,1744938655927,-500.0,0.00153324,120]
[358331428,1744938655936,-500.0,0.00153324,120]
[358331429,1744938655946,-4751.74,0.00153324,7]
[358331430,1744938655955,-500.0,0.00153324,120]
[358331431,1744938655965,-482.13692542,0.00153324,120]
[358331432,1744938655975,-500.0,0.00153324,120]
[358331433,1744938655985,-500.0,0.00153324,120]
[358331434,1744938655994,-500.0,0.00153324,120]
[358331435,1744938656003,-500.0,0.00153324,120]
[358331436,1744938656012,-500.0,0.00153324,120]
[358331437,1744938656022,-500.0,0.00153324,120]
[358331438,1744938656031,-532.11,0.00153324,120]
[358331439,1744938656040,-500.0,0.00153324,120]
[358331440,1744938656050,-500.0,0.00153324,120]
[358331441,1744938656060,-513.78220975,0.00153324,120]
[358331442,1744938656069,-500.0,0.00153324,120]
[358331443,1744938656083,-500.0,0.00153324,120]
[358331444,1744938656092,-500.0,0.00153324,120]
[358331445,1744938656101,-500.0,0.00153324,120]
[358331446,1744938656111,-500.0,0.00153324,120]
[358331447,1744938656120,-500.0,0.00153324,120]
[358331448,1744938656130,-509.31646149,0.00153324,120]
[358331449,1744938656140,-500.0,0.00153324,120]
[358331450,1744938656149,-500.0,0.00153324,120]
[358331451,1744938656158,-500.0,0.00153324,120]
[358331452,1744938656167,-227.85,0.00153324,120]
[358331453,1744938656177,-500.0,0.00153324,120]
[358331454,1744938656187,-500.0,0.00153324,120]
[358331455,1744938656196,-500.0,0.00153324,120]
[358331456,1744938656205,-500.0,0.00153324,120]
[358331457,1744938656215,-500.0,0.00153324,120]
[358331458,1744938656224,-500.0,0.00153324,120]
[358331459,1744938656233,-500.0,0.00153324,2]
[358331460,1744938656242,-585.9275182,0.00153324,30]
[358331461,1744938656253,-500.0,0.00153324,120]
[358331462,1744938656263,-500.0,0.00153324,120]
[358331463,1744938656273,-500.0,0.00153324,120]
[358331464,1744938656282,-500.0,0.00153324,120]
[358331465,1744938656292,-500.0,0.00153324,120]
[358331466,1744938656301,-500.0,0.00153324,120]
[358331467,1744938656311,-516.85,0.00153324,120]
[358331468,1744938656320,-500.0,0.00153324,120]
[358331469,1744938656330,-423.38246546,0.00153324,120]
[358331470,1744938656339,-500.0,0.00153324,120]
[358331471,1744938656350,-198.4,0.00153324,120]
[358331472,1744938656360,-500.0,0.00153324,120]
[358331473,1744938656369,-551.52,0.00153324,120]
[358331474,1744938656379,-5704.46848971,0.00153404,30]
[358331475,1744938656387,-5704.46848971,0.00153414,30]
[358331476,1744938656396,-661.73618724,0.00153414,30]
[358331477,1744938656406,-510.63321944,0.00153424,120]
[358331478,1744938656415,-500.0,0.00153424,120]
[358331479,1744938656424,-500.0,0.00153424,120]
[358331480,1744938656434,-253.25759521,0.00153424,120]
[358331481,1744938656443,-500.0,0.00153424,120]
[358331482,1744938656453,-500.0,0.00153424,120]
[358331483,1744938656464,-500.0,0.00153424,120]
[358331484,1744938656474,-631.00337492,0.00153424,120]
[358331485,1744938656484,-500.0,0.00153424,120]
[358331486,1744938656494,-523.77,0.00153424,120]
[358331487,1744938656504,-500.0,0.00153424,120]
[358331488,1744938656512,-500.0,0.00153424,120]
[358331489,1744938656524,-610.30685156,0.00153424,120]
[358331490,1744938656534,-500.0,0.00153424,120]
[358331491,1744938656544,-1266.75,0.00153424,120]
[358331492,1744938656553,-500.0,0.00153424,120]
[358331493,1744938656564,-500.0,0.00153424,120]
[358331494,1744938656575,-500.0,0.00153424,120]
[358331495,1744938656585,-500.0,0.00153424,120]
[358331496,1744938656595,-500.0,0.00153424,120]
[358331497,1744938656604,-196.85534588,0.00153424,120]
[358331498,1744938656614,-477.195698,0.00153424,120]
[358331499,1744938656624,-603.2233817,0.00153424,120]
[358331500,1744938656633,-500.0,0.00153424,120]
[358331501,1744938656643,-500.0,0.00153424,120]
[358331502,1744938656653,-180.0,0.00154192,30]
[358331503,1744938656663,-152.0,0.00154318,2]
[358331504,1744938656672,-152.0,0.00154318,120]
[358331505,1744938656682,-865.0,0.00154318,120]
[358331506,1744938656691,-2136.0,0.00154318,2]
[358331507,1744938656701,-3967.0,0.00154318,120]
[358331508,1744938656711,-5704.46848971,0.00154357,30]
[358331509,1744938656721,-28522.3424485,0.00154367,30]
[358331510,1744938656731,-500.0,0.00154377,120]
[358331511,1744938656740,-500.0,0.00154377,120]
[358331512,1744938656751,-500.0,0.00154377,120]
[358331513,1744938656760,-500.0,0.00154377,120]
[358331514,1744938656770,-500.0,0.00154377,120]
[358331515,1744938656779,-500.0,0.00154377,120]
[358331516,1744938656790,-500.0,0.00154377,120]
[358331517,1744938656800,-500.0,0.00154377,120]
[358331518,1744938656810,-508.80753946,0.00154377,120]
[358331519,1744938656820,-500.0,0.00154377,120]
[358331520,1744938656834,-500.0,0.00154377,120]
[358331521,1744938656844,-500.0,0.00154377,120]
[358331522,1744938656854,-500.0,0.00154377,120]
[358331523,1744938656864,-2000.0,0.00154377,120]
[358331524,1744938656874,-500.0,0.00154377,120]
[358331525,1744938656884,-500.0,0.00154377,120]
[358331526,1744938656894,-500.0,0.00154377,120]
[358331527,1744938656903,-500.0,0.00154377,120]
[358331528,1744938656913,-500.0,0.00154377,120]
[358331529,1744938656922,-500.0,0.00154377,120]
[358331530,1744938656931,-500.0,0.00154377,120]
[358331531,1744938656941,-518.89946539,0.00154377,120]
[358331532,1744938656951,-430.23203876,0.00154377,120]
[358331533,1744938656963,-500.0,0.00154377,120]
[358331534,1744938656973,-500.0,0.00154377,120]
[358331535,1744938656983,-665.1,0.00154377,120]
[358331536,1744938656992,-500.0,0.00154377,120]
[358331537,1744938657002,-500.0,0.00154377,120]
[358331538,1744938657011,-500.0,0.00154377,120]
[358331539,1744938657021,-500.0,0.00154377,120]
[358331540,1744938657031,-500.0,0.00154377,120]
[358331541,1744938657040,-541.93693452,0.00154377,120]
[358331542,1744938657051,-500.0,0.00154377,120]
[358331543,1744938657061,-500.0,0.00154377,120]
[358331544,1744938657074,-500.0,0.00154377,120]
[358331545,1744938657084,-500.0,0.00154377,120]
[358331546,1744938657094,-500.0,0.00154377,120]
[358331547,1744938657103,-500.0,0.00154377,120]
[358331548,1744938657111,-500.0,0.00154377,120]
[358331549,1744938657122,-500.0,0.00154377,120]
[358331550,1744938657131,-500.0,0.00154377,120]
[358331551,1744938657139,-500.0,0.00154377,120]
[358331552,1744938657149,-500.0,0.00154377,120]
[358331553,1744938657158,-500.0,0.00154377,120]
[358331554,1744938657167,-500.0,0.00154377,120]
[358331555,1744938657177,-500.0,0.00154377,120]
[358331556,1744938657186,-500.0,0.00154377,120]
[358331557,1744938657195,-500.0,0.00154377,120]
[358331558,1744938657204,-500.0,0.00154377,120]
[358331559,1744938657215,-500.0,0.00154377,120]
[358331560,1744938657224,-500.0,0.00154377,120]
[358331561,1744938657233,-500.0,0.00154377,120]
[358331562,1744938657243,-500.0,0.00154377,120]
[358331563,1744938657252,-500.0,0.00154377,120]
[358331564,1744938657367,-500.0,0.00154377,120]
[358331565,1744938657376,-500.0,0.00154377,120]
[358331566,1744938657386,-500.0,0.00154377,120]
[358331567,1744938657395,-500.0,0.00154377,120]
[358331568,1744938657405,-500.0,0.00154377,120]
[358331569,1744938657415,-500.0,0.00154377,120]
[358331570,1744938657424,-500.0,0.00154377,120]
[358331571,1744938657434,-500.0,0.00154377,120]
[358331572,1744938657443,-500.0,0.00154377,120]
[358331573,1744938657453,-500.0,0.00154377,120]
[358331574,1744938657463,-500.0,0.00154377,120]
[358331575,1744938657473,-500.0,0.00154377,120]
[358331576,1744938657482,-500.0,0.00154377,120]
[358331577,1744938657492,-500.0,0.00154377,120]
[358331578,1744938657502,-500.0,0.00154377,120]
[358331579,1744938657511,-500.0,0.00154377,120]
[358331580,1744938657520,-500.0,0.00154377,120]
[358331581,1744938657530,-500.0,0.00154377,120]
[358331582,1744938657539,-500.0,0.00154377,120]
[358331583,1744938657548,-500.0,0.00154377,120]
[358331584,1744938657558,-500.0,0.00154377,120]
[358331585,1744938657568,-500.0,0.00154377,120]
[358331586,1744938657577,-500.0,0.00154377,120]
[358331587,1744938657587,-500.0,0.00154377,120]
[358331588,1744938657596,-500.0,0.00154377,120]
[358331589,1744938657606,-500.0,0.00154377,120]
[358331590,1744938657615,-500.0,0.00154377,120]
[358331591,1744938657625,-300.0,0.00154377,120]
[358331592,1744938657634,-500.0,0.00154377,120]
[358331593,1744938657644,-500.0,0.00154377,120]
[358331594,1744938657653,-150.0,0.00154378,120]
[358331595,1744938657663,-11408.9369794,0.00156054,30]
[358331596,1744938657672,-377.37921814,0.00156064,58]
[358331597,1744938657682,-500.0,0.00156064,120]
[358331598,1744938657692,-500.0,0.00156064,120]
[358331599,1744938657701,-500.0,0.00156064,120]
[358331600,1744938657710,-500.0,0.00156064,120]
[358331601,1744938657720,-387.46656275,0.00156064,120]
[358331602,1744938657729,-500.0,0.00156064,120]
[358331603,1744938657739,-500.0,0.00156064,120]
[358331604,1744938657749,-500.0,0.00156064,120]
[358331605,1744938657758,-500.0,0.00156064,120]
[358331606,1744938657767,-500.0,0.00156064,120]
[358331607,1744938657776,-500.0,0.00156064,120]
[358331608,1744938657785,-500.0,0.00156064,120]
[358331609,1744938657795,-500.0,0.00156064,120]
[358331610,1744938657805,-500.0,0.00156064,120]
[358331611,1744938657813,-500.0,0.00156064,120]
[358331612,1744938657823,-180.539085,0.00156064,120]
[358331613,1744938657832,-500.0,0.00156064,2]
[358331614,1744938657842,-163.19,0.00156064,120]
[358331615,1744938657852,-1535.89490166,0.00156064,120]
[358331616,1744938657962,-322.167217,0.00139726,120]
[358331617,1744938657971,-151.0,0.00139726,120]
[358331618,1744938657980,-2.507983,0.00139726,120]
[358331619,1744938657996,-319.659234,0.00139726,120]
[358331620,1744938658006,-72.63566977,0.00139726,120]
[358331621,1744938658019,-249.53154723,0.00139726,120]
[358331622,1744938658029,-322.167217,0.00139726,120]
[358331623,1744938658038,-322.167217,0.00139726,120]
[358331624,1744938658048,-69.40251095,0.00156064,120]
[358331625,1744938658060,-164.24840539,0.00156064,120]
[358331626,1744938658069,-546.70984566,0.00156064,120]
[358331627,1744938658082,-279.685361,0.00156064,120]
[358331628,1744938658092,-500.0,0.00156064,120]
[358331629,1744938658101,-367.68661085,0.00156064,118]
[358331630,1744938658111,-500.0,0.00156064,120]
[358331631,1744938658121,-209.99,0.00156064,120]
[358331632,1744938658130,-500.0,0.00156064,120]
[358331633,1744938658139,-1165.0297771,0.00156064,7]
[358331634,1744938658151,-3586.7102229,0.00156064,7]
[358331635,1744938658161,-500.0,0.00156064,120]
[358331636,1744938658171,-316.33611949,0.00156064,120]
[358331637,1744938658181,-500.0,0.00156064,120]
[358331638,1744938658190,-405.03919457,0.00156064,120]
[358331639,1744938658199,-28.61446304,0.00156064,120]
[358331640,1744938658633,-322.167217,0.00139726,120]
[358331641,1744938658645,-471.38553696,0.00156064,120]
[358331642,1744938658660,-156.63103181,0.00156064,120]
[358331643,1744938658675,-305.95168749,0.00125712,120]
[358331644,1744938658685,-282.26499088,0.00156064,120]
[358331645,1744938658695,-500.0,0.00156064,120]
[358331646,1744938658704,-532.11,0.00156064,120]
[358331647,1744938658714,-13.09594927,0.00156064,120]
[358331648,1744938658815,-322.167217,0.00139726,120]